[Event "*** Titled Tuesday Blitz"]
[Site "Chess.com"]
[Date "2020.10.27"]
[Round "8"]
[White "GMJustin"]
[Black "ChessAurochs"]
[Result "1-0"]
[WhiteElo "2337"]
[BlackElo "2544"]
[TimeControl "180+1"]
[EndTime "11:29:58 PDT"]
[Termination "GMJustin won by checkmate"]

1. e4 {[%clk 0:02:51]} 1... e5 {[%clk 0:02:57.4]} 2. f4 {[%clk 0:02:50.3]} 2...
exf4 {[%clk 0:02:56.9]} 3. Qf3 {[%clk 0:02:46.8]} 3... Ne7 {[%clk 0:02:51.7]} 4.
d4 {[%clk 0:02:32.6]} 4... Ng6 {[%clk 0:02:49]} 5. Bxf4 {[%clk 0:02:20.5]} 5...
Nc6 {[%clk 0:02:45.3]} 6. Be3 {[%clk 0:02:12.9]} 6... Be7 {[%clk 0:02:37.1]} 7.
Bc4 {[%clk 0:02:05.8]} 7... O-O {[%clk 0:02:35.5]} 8. Nd2 {[%clk 0:01:45.2]}
8... d6 {[%clk 0:02:22.5]} 9. Ne2 {[%clk 0:01:38.3]} 9... Nge5 {[%clk
0:01:03.4]} 10. dxe5 {[%clk 0:01:34.9]} 10... Nxe5 {[%clk 0:01:04.3]} 11. Qf1
{[%clk 0:01:19.5]} 11... Nxc4 {[%clk 0:00:57.9]} 12. Nxc4 {[%clk 0:01:19.5]}
12... f5 {[%clk 0:00:58]} 13. e5 {[%clk 0:01:10.7]} 13... d5 {[%clk 0:00:44]}
14. O-O-O {[%clk 0:01:06]} 14... c6 {[%clk 0:00:37.8]} 15. Nd6 {[%clk
0:00:45.2]} 15... f4 {[%clk 0:00:34.5]} 16. Bd4 {[%clk 0:00:33.8]} 16... Bg4
{[%clk 0:00:29.9]} 17. h3 {[%clk 0:00:18.2]} 17... Bh5 {[%clk 0:00:28]} 18. Kb1
{[%clk 0:00:13.4]} 18... Bxd6 {[%clk 0:00:24.3]} 19. exd6 {[%clk 0:00:12.9]}
19... Qxd6 {[%clk 0:00:24.2]} 20. Qf2 {[%clk 0:00:12.5]} 20... Rfe8 {[%clk
0:00:03.2]} 21. Rde1 {[%clk 0:00:11.8]} 21... Re4 {[%clk 0:00:03.2]} 22. Nc3
{[%clk 0:00:09]} 22... Rxe1+ {[%clk 0:00:03.4]} 23. Rxe1 {[%clk 0:00:09]} 23...
b6 {[%clk 0:00:04.3]} 24. Be5 {[%clk 0:00:08.6]} 24... Qd7 {[%clk 0:00:03.5]}
25. Qxf4 {[%clk 0:00:08.3]} 25... Re8 {[%clk 0:00:03.6]} 26. Rf1 {[%clk
0:00:07.4]} 26... Bg6 {[%clk 0:00:03.7]} 27. Bd4 {[%clk 0:00:04.7]} 27... c5
{[%clk 0:00:03.2]} 28. Bf2 {[%clk 0:00:04.2]} 28... d4 {[%clk 0:00:03.7]} 29.
Nd1 {[%clk 0:00:03.6]} 29... Re2 {[%clk 0:00:02.2]} 30. Bxd4 {[%clk 0:00:02.7]}
30... Bxc2+ {[%clk 0:00:02.2]} 31. Ka1 {[%clk 0:00:02.9]} 31... Qe8 {[%clk
0:00:01.7]} 32. Bc3 {[%clk 0:00:01.9]} 32... Bxd1 {[%clk 0:00:02.1]} 33. Rxd1
{[%clk 0:00:01.8]} 33... Rxg2 {[%clk 0:00:02.6]} 34. Qc4+ {[%clk 0:00:01.8]}
34... Kh8 {[%clk 0:00:02.2]} 35. Qd5 {[%clk 0:00:02.1]} 35... Rg6 {[%clk
0:00:01.9]} 36. Qd8 {[%clk 0:00:02.1]} 36... Re6 {[%clk 0:00:02.5]} 37. Qxe8+
{[%clk 0:00:02.3]} 37... Rxe8 {[%clk 0:00:03.4]} 38. a3 {[%clk 0:00:02.7]} 38...
Kg8 {[%clk 0:00:01.9]} 39. Rd7 {[%clk 0:00:03.2]} 39... Ra8 {[%clk 0:00:02.2]}
40. Rxg7+ {[%clk 0:00:02.5]} 40... Kf8 {[%clk 0:00:03.1]} 41. Rxh7 {[%clk
0:00:02.9]} 41... Re8 {[%clk 0:00:02.7]} 42. Rh8+ {[%clk 0:00:03.4]} 42... Ke7
{[%clk 0:00:03.6]} 43. Rxe8+ {[%clk 0:00:03.7]} 43... Kxe8 {[%clk 0:00:04.5]}
44. h4 {[%clk 0:00:04.1]} 44... Kf7 {[%clk 0:00:05.4]} 45. a4 {[%clk 0:00:04.3]}
45... Kg6 {[%clk 0:00:06.3]} 46. Ka2 {[%clk 0:00:04.6]} 46... a6 {[%clk
0:00:06.9]} 47. Kb3 {[%clk 0:00:04.6]} 47... b5 {[%clk 0:00:07.8]} 48. axb5
{[%clk 0:00:04.8]} 48... axb5 {[%clk 0:00:08.7]} 49. Be5 {[%clk 0:00:05]} 49...
Kh5 {[%clk 0:00:09.1]} 50. Bd6 {[%clk 0:00:05.3]} 50... Kxh4 {[%clk 0:00:08.3]}
51. Bxc5 {[%clk 0:00:04.8]} 51... Kg5 {[%clk 0:00:09.2]} 52. Kb4 {[%clk
0:00:05.2]} 52... Kf5 {[%clk 0:00:10.1]} 53. Kxb5 {[%clk 0:00:05.6]} 53... Ke5
{[%clk 0:00:11]} 54. b4 {[%clk 0:00:05.8]} 54... Ke4 {[%clk 0:00:11.9]} 55. Ka6
{[%clk 0:00:06]} 55... Kd3 {[%clk 0:00:12.8]} 56. Bf8 {[%clk 0:00:05.9]} 56...
Kc2 {[%clk 0:00:13.7]} 57. b5 {[%clk 0:00:06.3]} 57... Kb1 {[%clk 0:00:14.6]}
58. b6 {[%clk 0:00:06.7]} 58... Ka2 {[%clk 0:00:15.5]} 59. b7 {[%clk 0:00:07]}
59... Kb1 {[%clk 0:00:16.4]} 60. b8=Q+ {[%clk 0:00:06.9]} 60... Ka2 {[%clk
0:00:17.3]} 61. Qb4 {[%clk 0:00:05.9]} 61... Ka1 {[%clk 0:00:18.2]} 62. Bg7+
{[%clk 0:00:05.6]} 62... Ka2 {[%clk 0:00:19.1]} 63. Qb2# {[%clk 0:00:05.4]} 1-0

[Event "*** Titled Tuesday Blitz"]
[Site "Chess.com"]
[Date "2020.10.27"]
[Round "8"]
[White "DenisQ"]
[Black "Arfan48"]
[Result "1-0"]
[WhiteElo "2638"]
[BlackElo "2436"]
[TimeControl "180+1"]
[EndTime "11:30:00 PDT"]
[Termination "DenisQ won by checkmate"]

1. Nf3 {[%clk 0:03:00.9]} 1... Nf6 {[%clk 0:02:58.5]} 2. g3 {[%clk 0:03:00.3]}
2... g6 {[%clk 0:02:58.7]} 3. Bg2 {[%clk 0:03:00]} 3... Bg7 {[%clk 0:02:59.6]}
4. O-O {[%clk 0:03:00.3]} 4... O-O {[%clk 0:03:00.3]} 5. c4 {[%clk 0:03:00.8]}
5... d6 {[%clk 0:03:00.8]} 6. Nc3 {[%clk 0:03:01]} 6... Nc6 {[%clk 0:03:01.2]}
7. Rb1 {[%clk 0:03:00.7]} 7... e5 {[%clk 0:02:57.8]} 8. b4 {[%clk 0:02:59]} 8...
Be6 {[%clk 0:02:52]} 9. b5 {[%clk 0:02:57.9]} 9... Ne7 {[%clk 0:02:50.4]} 10. d4
{[%clk 0:02:53.6]} 10... exd4 {[%clk 0:01:51.7]} 11. Nxd4 {[%clk 0:02:53.1]}
11... Bxc4 {[%clk 0:01:51.1]} 12. Bxb7 {[%clk 0:02:44.3]} 12... Rb8 {[%clk
0:01:50.6]} 13. Bf3 {[%clk 0:02:44.5]} 13... a6 {[%clk 0:01:39]} 14. Qa4 {[%clk
0:02:31.4]} 14... axb5 {[%clk 0:01:34.9]} 15. Ncxb5 {[%clk 0:02:26.8]} 15... Bd5
{[%clk 0:01:27.5]} 16. Bg5 {[%clk 0:02:16.7]} 16... Bxf3 {[%clk 0:01:22.6]} 17.
Nxf3 {[%clk 0:02:15.9]} 17... Qd7 {[%clk 0:01:17]} 18. Rfc1 {[%clk 0:02:01.5]}
18... Ra8 {[%clk 0:00:53.6]} 19. Qc2 {[%clk 0:01:55.1]} 19... c6 {[%clk
0:00:50.3]} 20. Nc3 {[%clk 0:01:52.3]} 20... h6 {[%clk 0:00:43.3]} 21. Bd2
{[%clk 0:01:43.7]} 21... Rfc8 {[%clk 0:00:40.7]} 22. a4 {[%clk 0:01:41.4]} 22...
d5 {[%clk 0:00:27.8]} 23. e3 {[%clk 0:01:29.8]} 23... Nf5 {[%clk 0:00:28]} 24.
Ne2 {[%clk 0:01:25.5]} 24... Ne4 {[%clk 0:00:27.6]} 25. Be1 {[%clk 0:01:22]}
25... Nfd6 {[%clk 0:00:24.1]} 26. Rd1 {[%clk 0:01:13.5]} 26... Qa7 {[%clk
0:00:22.1]} 27. a5 {[%clk 0:01:08.1]} 27... Nc4 {[%clk 0:00:22.4]} 28. Ned4
{[%clk 0:01:05.3]} 28... Nxa5 {[%clk 0:00:12.4]} 29. Ra1 {[%clk 0:01:04.6]}
29... Qc7 {[%clk 0:00:11.1]} 30. Rxa5 {[%clk 0:00:53.5]} 30... Rxa5 {[%clk
0:00:10.5]} 31. Bxa5 {[%clk 0:00:54.4]} 31... Qxa5 {[%clk 0:00:11.2]} 32. Nxc6
{[%clk 0:00:55]} 32... Qc7 {[%clk 0:00:08.2]} 33. Ne7+ {[%clk 0:00:53.1]} 33...
Qxe7 {[%clk 0:00:08.2]} 34. Qxc8+ {[%clk 0:00:52.3]} 34... Kh7 {[%clk
0:00:09.1]} 35. Rxd5 {[%clk 0:00:51.4]} 35... Qa3 {[%clk 0:00:08.5]} 36. Qc2
{[%clk 0:00:47.6]} 36... Qe7 {[%clk 0:00:07.4]} 37. h4 {[%clk 0:00:45.1]} 37...
Nf6 {[%clk 0:00:06.7]} 38. Rd4 {[%clk 0:00:43.8]} 38... Qb7 {[%clk 0:00:05.5]}
39. Qe2 {[%clk 0:00:25]} 39... Qe7 {[%clk 0:00:05.1]} 40. Qd3 {[%clk 0:00:21.4]}
40... Nh5 {[%clk 0:00:05.1]} 41. Re4 {[%clk 0:00:20.5]} 41... Qf6 {[%clk
0:00:05.4]} 42. Kg2 {[%clk 0:00:20.7]} 42... Qc6 {[%clk 0:00:04.7]} 43. Qc4
{[%clk 0:00:20.2]} 43... Qb7 {[%clk 0:00:03.7]} 44. Qb4 {[%clk 0:00:14.3]} 44...
Qd7 {[%clk 0:00:02.1]} 45. Qc4 {[%clk 0:00:14.3]} 45... Nf6 {[%clk 0:00:01.9]}
46. Rf4 {[%clk 0:00:13.8]} 46... Qc7 {[%clk 0:00:02.2]} 47. Qxc7 {[%clk
0:00:13.1]} 47... Nd5 {[%clk 0:00:02.3]} 48. Qxf7 {[%clk 0:00:10.4]} 48... Nxf4+
{[%clk 0:00:02.6]} 49. exf4 {[%clk 0:00:11.3]} 49... g5 {[%clk 0:00:03]} 50. Ne5
{[%clk 0:00:11.7]} 50... Kh8 {[%clk 0:00:03]} 51. Ng6+ {[%clk 0:00:11]} 51...
Kh7 {[%clk 0:00:03.5]} 52. Ne7 {[%clk 0:00:11.9]} 52... Kh8 {[%clk 0:00:03.6]}
53. Qg8# {[%clk 0:00:11.6]} 1-0

[Event "*** Titled Tuesday Blitz"]
[Site "Chess.com"]
[Date "2020.10.27"]
[Round "8"]
[White "Dream2World_Number1"]
[Black "PowerThinking2650"]
[Result "1-0"]
[WhiteElo "2137"]
[BlackElo "2381"]
[TimeControl "180+1"]
[EndTime "11:30:00 PDT"]
[Termination "Dream2World_Number1 won by checkmate"]

1. e4 {[%clk 0:03:00.9]} 1... e5 {[%clk 0:02:59.2]} 2. Nf3 {[%clk 0:03:01]} 2...
Nc6 {[%clk 0:02:57.9]} 3. Bb5 {[%clk 0:03:01.4]} 3... a6 {[%clk 0:02:57.5]} 4.
Ba4 {[%clk 0:03:01.8]} 4... Nf6 {[%clk 0:02:57.1]} 5. O-O {[%clk 0:03:02.1]}
5... Be7 {[%clk 0:02:57.4]} 6. Re1 {[%clk 0:03:02.2]} 6... b5 {[%clk 0:02:57.3]}
7. Bb3 {[%clk 0:03:02.8]} 7... d6 {[%clk 0:02:58.1]} 8. c3 {[%clk 0:03:03.4]}
8... O-O {[%clk 0:02:58]} 9. a4 {[%clk 0:03:04]} 9... Bd7 {[%clk 0:02:55.9]} 10.
d4 {[%clk 0:02:58.9]} 10... h6 {[%clk 0:02:47.7]} 11. h3 {[%clk 0:02:43.8]}
11... Re8 {[%clk 0:02:46.2]} 12. Nbd2 {[%clk 0:02:41.6]} 12... Bf8 {[%clk
0:02:45.3]} 13. dxe5 {[%clk 0:02:39.4]} 13... Nxe5 {[%clk 0:02:41.6]} 14. Nxe5
{[%clk 0:02:39.7]} 14... dxe5 {[%clk 0:02:42.5]} 15. Nf3 {[%clk 0:02:38.7]}
15... c5 {[%clk 0:02:31.2]} 16. Be3 {[%clk 0:02:10.7]} 16... c4 {[%clk
0:02:29.7]} 17. Bc2 {[%clk 0:02:10.9]} 17... Qc7 {[%clk 0:02:25.3]} 18. a5
{[%clk 0:02:10.8]} 18... Bc6 {[%clk 0:02:24]} 19. Bb6 {[%clk 0:02:10.6]} 19...
Qb7 {[%clk 0:02:22.1]} 20. Qe2 {[%clk 0:02:10.1]} 20... Nh5 {[%clk 0:02:19.2]}
21. g3 {[%clk 0:02:03.5]} 21... g6 {[%clk 0:02:10]} 22. Rad1 {[%clk 0:01:59.1]}
22... Re6 {[%clk 0:01:50.1]} 23. b3 {[%clk 0:01:57.8]} 23... Rc8 {[%clk
0:01:33]} 24. bxc4 {[%clk 0:01:55.2]} 24... bxc4 {[%clk 0:01:32.8]} 25. Qe3
{[%clk 0:01:50.4]} 25... Rce8 {[%clk 0:01:23.4]} 26. Bb1 {[%clk 0:01:38.5]}
26... Qc8 {[%clk 0:01:13.6]} 27. Kh2 {[%clk 0:01:33.4]} 27... Rf6 {[%clk
0:01:12.7]} 28. Ba2 {[%clk 0:01:28.2]} 28... Bd7 {[%clk 0:01:08.8]} 29. Bxc4
{[%clk 0:01:16.5]} 29... Bxh3 {[%clk 0:01:03.2]} 30. Bxa6 {[%clk 0:01:15.1]}
30... Qg4 {[%clk 0:00:56]} 31. Ng1 {[%clk 0:01:12.5]} 31... Nf4 {[%clk
0:00:50.4]} 32. Be2 {[%clk 0:01:01.7]} 32... Nxe2 {[%clk 0:00:40]} 33. Qxe2
{[%clk 0:01:02.6]} 33... Qxe2 {[%clk 0:00:31.1]} 34. Nxe2 {[%clk 0:00:54.2]}
34... Bg4 {[%clk 0:00:31]} 35. Ra1 {[%clk 0:00:48.2]} 35... Rc8 {[%clk
0:00:23.3]} 36. Kg1 {[%clk 0:00:43.7]} 36... Bf3 {[%clk 0:00:21]} 37. Nc1 {[%clk
0:00:38.3]} 37... Rxc3 {[%clk 0:00:19.7]} 38. Be3 {[%clk 0:00:25.5]} 38... Ra6
{[%clk 0:00:18.5]} 39. Ne2 {[%clk 0:00:20.9]} 39... Rc4 {[%clk 0:00:15.1]} 40.
Bd2 {[%clk 0:00:17.5]} 40... Rxe4 {[%clk 0:00:14.1]} 41. Nc1 {[%clk 0:00:13.1]}
41... Rxe1+ {[%clk 0:00:13.7]} 42. Bxe1 {[%clk 0:00:14]} 42... Bc5 {[%clk
0:00:13.7]} 43. Nd3 {[%clk 0:00:12.9]} 43... Bd4 {[%clk 0:00:13.8]} 44. Rc1
{[%clk 0:00:11.1]} 44... Be2 {[%clk 0:00:13]} 45. Rc8+ {[%clk 0:00:11.1]} 45...
Kg7 {[%clk 0:00:13.1]} 46. Nc5 {[%clk 0:00:10.3]} 46... Ra7 {[%clk 0:00:10.2]}
47. Bb4 {[%clk 0:00:08.5]} 47... h5 {[%clk 0:00:09.5]} 48. Ne4 {[%clk 0:00:08]}
48... Bf3 {[%clk 0:00:09.1]} 49. Bf8+ {[%clk 0:00:08.2]} 49... Kh7 {[%clk
0:00:08.9]} 50. Nf6+ {[%clk 0:00:06.8]} 50... Kh8 {[%clk 0:00:05.8]} 51. Bh6#
{[%clk 0:00:06.6]} 1-0

[Event "*** Titled Tuesday Blitz"]
[Site "Chess.com"]
[Date "2020.10.27"]
[Round "8"]
[White "Fischerev7"]
[Black "silverback96"]
[Result "1-0"]
[WhiteElo "2420"]
[BlackElo "2235"]
[TimeControl "180+1"]
[EndTime "11:30:06 PDT"]
[Termination "Fischerev7 won on time"]

1. e4 {[%clk 0:03:00.9]} 1... e6 {[%clk 0:02:59.7]} 2. d4 {[%clk 0:02:54]} 2...
d5 {[%clk 0:02:59.4]} 3. Nc3 {[%clk 0:02:52.4]} 3... Bb4 {[%clk 0:02:58.7]} 4.
e5 {[%clk 0:02:51.5]} 4... Qd7 {[%clk 0:02:58.7]} 5. Qg4 {[%clk 0:02:49.8]} 5...
f5 {[%clk 0:02:58.3]} 6. Qg3 {[%clk 0:02:47.8]} 6... b6 {[%clk 0:02:58.2]} 7.
Bd2 {[%clk 0:02:26.1]} 7... Ba6 {[%clk 0:02:57]} 8. Bxa6 {[%clk 0:02:24.9]} 8...
Nxa6 {[%clk 0:02:57.9]} 9. Nge2 {[%clk 0:02:25.2]} 9... Nh6 {[%clk 0:02:53]} 10.
h4 {[%clk 0:02:15.7]} 10... g6 {[%clk 0:02:48.6]} 11. h5 {[%clk 0:02:14.3]}
11... Qg7 {[%clk 0:02:20.1]} 12. hxg6 {[%clk 0:02:11]} 12... hxg6 {[%clk
0:02:21]} 13. Nf4 {[%clk 0:01:55.8]} 13... Ng4 {[%clk 0:02:01.3]} 14. O-O-O
{[%clk 0:01:42.1]} 14... Kf7 {[%clk 0:01:47.7]} 15. f3 {[%clk 0:01:24.3]} 15...
Nh6 {[%clk 0:01:46.5]} 16. Rh3 {[%clk 0:00:58.8]} 16... Rh7 {[%clk 0:01:35.3]}
17. Rdh1 {[%clk 0:00:57.1]} 17... Rah8 {[%clk 0:01:35.4]} 18. Qh2 {[%clk
0:00:50.8]} 18... Bf8 {[%clk 0:01:31.3]} 19. Nb5 {[%clk 0:00:37.9]} 19... c5
{[%clk 0:00:41.3]} 20. c3 {[%clk 0:00:33]} 20... Nb8 {[%clk 0:00:30.8]} 21. Kb1
{[%clk 0:00:29.1]} 21... a6 {[%clk 0:00:29.9]} 22. Nd6+ {[%clk 0:00:28.5]} 22...
Bxd6 {[%clk 0:00:28.9]} 23. exd6 {[%clk 0:00:28.3]} 23... Nd7 {[%clk 0:00:22.7]}
24. Nd3 {[%clk 0:00:27]} 24... Kg8 {[%clk 0:00:20.9]} 25. Ne5 {[%clk 0:00:26.3]}
25... Nxe5 {[%clk 0:00:21]} 26. dxe5 {[%clk 0:00:26.4]} 26... Nf7 {[%clk
0:00:21.2]} 27. Qg3 {[%clk 0:00:20.5]} 27... Rxh3 {[%clk 0:00:20.7]} 28. Rxh3
{[%clk 0:00:20.3]} 28... Rxh3 {[%clk 0:00:20.9]} 29. gxh3 {[%clk 0:00:18]} 29...
Nxe5 {[%clk 0:00:18.8]} 30. Bf4 {[%clk 0:00:16.9]} 30... Nd7 {[%clk 0:00:18.8]}
31. h4 {[%clk 0:00:14.5]} 31... Kf7 {[%clk 0:00:18.9]} 32. Qg5 {[%clk
0:00:14.1]} 32... e5 {[%clk 0:00:18.6]} 33. Bc1 {[%clk 0:00:13.3]} 33... Qf6
{[%clk 0:00:18.2]} 34. Qh6 {[%clk 0:00:13.4]} 34... Ke6 {[%clk 0:00:17.2]} 35.
h5 {[%clk 0:00:13.2]} 35... gxh5 {[%clk 0:00:16.4]} 36. Qxh5 {[%clk 0:00:14.1]}
36... Kxd6 {[%clk 0:00:16.6]} 37. Qe8 {[%clk 0:00:14.1]} 37... Qf8 {[%clk
0:00:14.1]} 38. Qg6+ {[%clk 0:00:13]} 38... Qf6 {[%clk 0:00:12.9]} 39. Qe8
{[%clk 0:00:13.2]} 39... Qf8 {[%clk 0:00:13.3]} 40. Qg6+ {[%clk 0:00:12.9]}
40... Kc7 {[%clk 0:00:13.5]} 41. a3 {[%clk 0:00:12.4]} 41... Qf6 {[%clk
0:00:10]} 42. Qe8 {[%clk 0:00:12.1]} 42... Qf8 {[%clk 0:00:10.4]} 43. Qe6 {[%clk
0:00:11.8]} 43... a5 {[%clk 0:00:10.2]} 44. Qxd5 {[%clk 0:00:10.3]} 44... Qd6
{[%clk 0:00:08.7]} 45. Qc4 {[%clk 0:00:10]} 45... Qc6 {[%clk 0:00:06.1]} 46. Qd3
{[%clk 0:00:08.2]} 46... Nf6 {[%clk 0:00:05.4]} 47. Qxf5 {[%clk 0:00:07.8]}
47... Nd5 {[%clk 0:00:04]} 48. Qxe5+ {[%clk 0:00:07.8]} 48... Kb7 {[%clk
0:00:02.8]} 49. f4 {[%clk 0:00:08.1]} 1-0

[Event "*** Titled Tuesday Blitz"]
[Site "Chess.com"]
[Date "2020.10.27"]
[Round "8"]
[White "niki_2003"]
[Black "MarkEvgenievich"]
[Result "0-1"]
[WhiteElo "1903"]
[BlackElo "2318"]
[TimeControl "180+1"]
[EndTime "11:30:06 PDT"]
[Termination "MarkEvgenievich won by resignation"]

1. d4 {[%clk 0:02:57.5]} 1... Nf6 {[%clk 0:02:58.9]} 2. c4 {[%clk 0:02:57.3]}
2... c5 {[%clk 0:02:59.2]} 3. d5 {[%clk 0:02:56.7]} 3... b5 {[%clk 0:02:59.7]}
4. Qc2 {[%clk 0:02:55.9]} 4... e6 {[%clk 0:02:57.7]} 5. e4 {[%clk 0:02:55.7]}
5... bxc4 {[%clk 0:02:55.6]} 6. Bxc4 {[%clk 0:02:51.8]} 6... exd5 {[%clk
0:02:53]} 7. exd5 {[%clk 0:02:51.5]} 7... d6 {[%clk 0:02:52.5]} 8. Nc3 {[%clk
0:02:51.2]} 8... Be7 {[%clk 0:02:51.8]} 9. Nf3 {[%clk 0:02:47.5]} 9... O-O
{[%clk 0:02:52.1]} 10. O-O {[%clk 0:02:47.8]} 10... Bg4 {[%clk 0:02:49.7]} 11.
Nd2 {[%clk 0:02:42.2]} 11... Nbd7 {[%clk 0:02:47.5]} 12. h3 {[%clk 0:02:38.2]}
12... Bh5 {[%clk 0:02:46.6]} 13. Bd3 {[%clk 0:02:35.1]} 13... Ne5 {[%clk
0:02:42.1]} 14. Nc4 {[%clk 0:02:29.4]} 14... Nxc4 {[%clk 0:02:37]} 15. Bxc4
{[%clk 0:02:28.9]} 15... Bg6 {[%clk 0:02:37.5]} 16. Bd3 {[%clk 0:02:27.2]} 16...
Bxd3 {[%clk 0:02:36.8]} 17. Qxd3 {[%clk 0:02:27.7]} 17... Nd7 {[%clk 0:02:37.4]}
18. f4 {[%clk 0:02:26.1]} 18... Bf6 {[%clk 0:02:35.9]} 19. Be3 {[%clk
0:02:24.6]} 19... Rb8 {[%clk 0:02:32.7]} 20. Nb5 {[%clk 0:02:23.3]} 20... Qb6
{[%clk 0:02:28.5]} 21. a4 {[%clk 0:02:12.9]} 21... a6 {[%clk 0:02:28]} 22. Na3
{[%clk 0:02:09.9]} 22... Qxb2 {[%clk 0:02:16.8]} 23. Nc4 {[%clk 0:01:56.8]}
23... Qb3 {[%clk 0:02:13.1]} 24. Rad1 {[%clk 0:01:46.8]} 24... Qxa4 {[%clk
0:02:06.7]} 25. Nxd6 {[%clk 0:01:45.1]} 25... Rb3 {[%clk 0:02:02.5]} 26. Qc2
{[%clk 0:01:37.8]} 26... Qb4 {[%clk 0:01:48.1]} 27. Bf2 {[%clk 0:01:27.6]} 27...
Rb2 {[%clk 0:01:42.3]} 28. Qe4 {[%clk 0:01:24.4]} 28... Rb8 {[%clk 0:00:50.2]}
29. Rde1 {[%clk 0:00:33]} 29... h6 {[%clk 0:00:46.4]} 30. Nc4 {[%clk 0:00:24.6]}
30... Rb3 {[%clk 0:00:35.3]} 31. Ne5 {[%clk 0:00:22.5]} 31... Qxe4 {[%clk
0:00:17.7]} 32. Rxe4 {[%clk 0:00:22.2]} 32... Nb6 {[%clk 0:00:14.8]} 33. Bxc5
{[%clk 0:00:20.2]} 33... Nxd5 {[%clk 0:00:13.1]} 34. Nd7 {[%clk 0:00:20.8]}
34... Rd8 {[%clk 0:00:12.2]} 35. Nxf6+ {[%clk 0:00:20.8]} 35... Nxf6 {[%clk
0:00:12.4]} 36. Be7 {[%clk 0:00:21.1]} 36... Rd2 {[%clk 0:00:11.3]} 37. Bxf6
{[%clk 0:00:21]} 37... gxf6 {[%clk 0:00:11.2]} 38. Rf3 {[%clk 0:00:19.1]} 38...
Rxf3 {[%clk 0:00:10]} 39. gxf3 {[%clk 0:00:19.2]} 39... Ra2 {[%clk 0:00:09.4]}
40. Re8+ {[%clk 0:00:18.8]} 40... Kg7 {[%clk 0:00:08.7]} 41. Ra8 {[%clk
0:00:18.9]} 41... a5 {[%clk 0:00:09.1]} 42. Kf1 {[%clk 0:00:18.1]} 42... Kg6
{[%clk 0:00:08.2]} 43. Ke1 {[%clk 0:00:18.6]} 43... Kf5 {[%clk 0:00:08.1]} 44.
Kd1 {[%clk 0:00:19]} 44... Kxf4 {[%clk 0:00:07.4]} 45. Kc1 {[%clk 0:00:19.6]}
45... Kxf3 {[%clk 0:00:06.3]} 46. Kb1 {[%clk 0:00:20]} 46... Ra4 {[%clk
0:00:06.3]} 47. Rf8 {[%clk 0:00:19.6]} 47... Kg3 {[%clk 0:00:04.8]} 48. Rxf7
{[%clk 0:00:20.2]} 48... h5 {[%clk 0:00:04.9]} 49. Rxf6 {[%clk 0:00:20]} 49...
Kxh3 {[%clk 0:00:04.9]} 50. Rh6 {[%clk 0:00:20.4]} 50... h4 {[%clk 0:00:04.9]}
51. Rc6 {[%clk 0:00:18.6]} 51... Kg3 {[%clk 0:00:05.1]} 52. Rc3+ {[%clk
0:00:19]} 52... Kg4 {[%clk 0:00:05.2]} 53. Rc8 {[%clk 0:00:17.6]} 53... h3
{[%clk 0:00:05.7]} 54. Rg8+ {[%clk 0:00:18.2]} 54... Kf3 {[%clk 0:00:04.9]} 55.
Rf8+ {[%clk 0:00:18.5]} 55... Kg3 {[%clk 0:00:04.9]} 56. Rg8+ {[%clk 0:00:18.6]}
56... Rg4 {[%clk 0:00:05.4]} 57. Ra8 {[%clk 0:00:16.5]} 57... h2 {[%clk
0:00:05.7]} 58. Rxa5 {[%clk 0:00:17.2]} 58... h1=Q+ {[%clk 0:00:05.2]} 0-1